bitfinex-derivatives/quotes_ETHF0:USTF0_20250123
["timestamp","ask_amount","ask_price","bid_price","bid_amount"]
[1737650580181,3.2078,3276.3,3276.2,2.86933672]
[1737650580577,3.2078,3276.3,3275.8,2.86933672]
[1737650580877,3.2078,3276.3,3276.0,0.61033]
[1737650581080,3.2078,3276.3,3275.8,2.86933672]
[1737650581282,5.5358,3276.3,3275.9,0.61035]
[1737650581485,6.14609,3276.3,3275.9,0.61035]
[1737650581881,5.5358,3276.3,3275.9,0.61035]
[1737650582087,5.5358,3276.3,3275.8,2.86933672]
[1737650582281,5.5358,3276.3,3276.2,3.47963672]
[1737650582486,3.2078,3276.8,3276.2,2.86933672]
[1737650582679,1.52684,3278.2,3276.9,0.61017]
[1737650582680,3.2078,3277.3,3276.9,0.61017]
[1737650582993,3.2078,3277.3,3277.1,2.86933672]
[1737650583887,3.8179,3277.3,3277.1,2.86933672]
[1737650584077,0.61015,3277.0,3276.9,0.00457834]
[1737650584279,3.2078,3277.3,3276.9,0.00457834]
[1737650584479,0.61015,3277.0,3276.9,0.00457834]
[1737650585881,0.61027,3276.4,3276.1,0.61031]
[1737650586088,0.61033,3276.1,3275.8,0.61036]
[1737650586484,2.4908,3276.4,3275.7,5.5035]
[1737650586788,3.81813,3276.1,3275.7,2.2957]
[1737650586983,3.81813,3276.1,3275.8,0.61036]
[1737650587388,0.61034,3276.0,3275.7,0.61495834]
[1737650587585,3.2078,3276.1,3275.7,0.00457834]
[1737650587789,3.81813,3276.1,3275.8,0.61036]
[1737650588289,3.2078,3276.1,3275.7,0.00457834]
[1737650588483,3.2078,3276.1,3275.9,0.61035]
[1737650588789,0.61036,3275.9,3275.7,0.61495834]
[1737650589089,3.2078,3276.1,3275.7,0.00457834]
[1737650589288,0.61037,3275.9,3275.7,0.00457834]
[1737650589484,2.4774,3276.0,3275.7,0.00457834]
[1737650589687,0.61037,3275.9,3275.7,0.00457834]
[1737650589987,0.61038,3275.8,3275.7,0.00457834]
[1737650590577,2.4774,3276.0,3275.7,0.00457834]
[1737650590776,3.2078,3276.1,3275.7,0.00457834]
[1737650591083,2.49535455,3276.4,3276.3,0.61028]
[1737650591278,3.2078,3276.6,3276.5,0.61025]
[1737650592082,0.61016,3277.0,3276.3,2.86933672]
[1737650592280,0.61016,3277.0,3276.7,0.6102]
[1737650592483,0.61018,3276.9,3276.7,0.6102]
[1737650592784,3.2078,3277.1,3276.3,2.86933672]
[1737650593191,3.2078,3277.1,3276.6,0.61022]
[1737650593388,0.61021,3276.8,3276.6,0.61022]
[1737650593780,0.61024,3276.6,3276.4,0.61025]
[1737650593984,0.61022,3276.7,3276.5,0.61024]
[1737650594186,7.4773,3277.5,3276.3,2.86933672]
[1737650594187,3.2078,3276.8,3276.3,2.86933672]
[1737650594384,1.8896,3276.7,3276.3,2.86933672]
[1737650594686,0.61026,3276.5,3276.3,3.47961672]
[1737650594885,1.8896,3276.7,3276.0,0.61034]
[1737650594886,0.6103,3276.3,3276.0,0.61034]
[1737650595291,0.61028,3276.3,3276.0,0.61034]
[1737650595494,3.2078,3276.4,3276.0,0.61034]
[1737650595495,0.61031,3276.2,3276.0,0.61034]
[1737650595684,0.61032,3276.2,3276.0,0.61034]
[1737650595883,0.61032,3276.2,3275.9,3.47968672]
[1737650596090,0.61033,3276.1,3275.9,3.47968672]
[1737650596297,3.2078,3276.4,3275.9,3.47968672]
[1737650596589,0.61028,3276.3,3275.9,3.47968672]
[1737650596791,0.61034,3276.0,3275.9,2.86933672]
[1737650597088,0.61038,3275.8,3275.6,3.2078]
[1737650597293,3.2078,3276.4,3275.6,3.2078]
[1737650597594,0.61037,3275.9,3275.7,0.61496834]
[1737650598089,0.61038,3275.8,3275.7,0.00457834]
[1737650598487,0.61034,3276.0,3275.9,0.61035]
[1737650598697,0.61033,3276.1,3276.0,0.61033]
[1737650598886,0.61036,3276.0,3275.9,0.61036]
[1737650599084,0.61036,3276.0,3275.7,0.00457834]
[1737650599085,0.61038,3275.8,3275.7,0.00457834]
[1737650599686,2.61798,3275.8,3275.7,0.00457834]
[1737650600085,5.96244108,3275.8,3274.7,2.86933672]
[1737650600283,3.81832,3275.1,3275.0,0.61053]
[1737650600497,3.2078,3275.1,3275.0,0.61053]
[1737650600689,3.81831,3275.1,3275.0,0.61053]
[1737650600888,3.81831,3275.1,3274.9,0.61053]
[1737650601091,3.81831,3275.1,3275.0,0.61053]
[1737650601292,3.2078,3275.1,3275.0,0.61053]
[1737650601588,3.81832,3275.1,3274.9,0.61053]
[1737650601798,3.2078,3275.1,3274.9,0.61053]
[1737650601987,3.81832,3275.1,3274.9,0.61053]
[1737650602190,3.2078,3275.1,3275.0,0.61053]
[1737650603287,0.00457834,3275.2,3274.8,3.2078]
[1737650603484,3.2078,3275.7,3275.6,3.47975672]
[1737650604096,3.8481,3276.7,3276.0,0.61033]
[1737650604097,3.2078,3276.1,3276.0,0.61033]
[1737650604294,3.2078,3276.5,3276.4,0.61027]
[1737650604493,3.2078,3276.5,3276.4,2.86933672]
[1737650604688,3.81805,3276.5,3276.4,2.86933672]
[1737650604889,3.81805,3276.5,3276.2,0.61029]
[1737650605394,3.81805,3276.5,3276.3,0.61028]
[1737650605599,3.81806,3276.5,3276.2,0.61029]
[1737650606488,3.81806,3276.5,3276.0,2.86933672]
[1737650606489,0.61029,3276.3,3276.1,0.61031]
[1737650606696,0.61029,3276.3,3276.0,2.86933672]
[1737650606697,0.61028,3276.3,3276.0,2.86933672]
[1737650606896,0.61028,3276.3,3276.1,0.61031]
[1737650607601,3.2078,3276.5,3276.0,2.86933672]
[1737650607992,3.2078,3277.1,3276.4,2.86933672]
[1737650608201,3.2078,3277.1,3277.0,0.61015]
[1737650609394,0.3694,3277.5,3276.9,2.86933672]
[1737650609604,0.3694,3277.5,3277.4,3.47941672]
[1737650609999,0.3694,3277.5,3277.4,2.86933672]
[1737650610401,0.6101,3277.3,3277.2,0.02887682]
[1737650610598,0.3694,3277.5,3277.4,0.61008]
[1737650610798,0.3694,3277.5,3277.4,3.47941672]
[1737650611602,0.3694,3277.5,3277.4,3.50829354]
[1737650614814,2.0442,3278.6,3278.5,0.60988]
[1737650615006,3.2078,3278.9,3278.6,0.60985]
[1737650615198,3.2078,3278.9,3278.2,2.86933672]
[1737650615399,3.81761,3278.9,3278.6,2.86933672]
[1737650615600,3.2078,3278.9,3278.7,0.02887682]
[1737650616200,3.2078,3278.9,3278.8,0.60982]
[1737650616604,3.2078,3278.9,3278.8,0.02887682]
[1737650616904,0.60988,3278.5,3278.4,0.00457834]
[1737650617508,3.81768,3278.5,3278.4,0.00457834]
[1737650617710,12.12100394,3278.5,3277.4,2.86933672]
[1737650617902,0.61002,3277.8,3277.5,0.61005]
[1737650618208,3.2078,3278.0,3277.4,2.86933672]
[1737650618411,0.60999,3277.9,3277.5,0.61004]
[1737650618802,0.6101,3277.3,3277.0,2.86933672]
[1737650619001,3.2078,3277.6,3276.8,3.21237834]
[1737650619199,0.61007,3277.5,3277.1,0.61013]
[1737650619601,3.2078,3277.6,3277.4,2.86933672]
[1737650619809,3.2078,3277.6,3277.5,0.61006]
[1737650620204,0.61455834,3278.0,3277.6,0.61003]
[1737650620408,0.00457834,3278.0,3277.9,0.60999]
[1737650625116,0.60999,3277.9,3277.8,2.86933672]
[1737650625611,1.9174,3277.9,3277.8,3.47934672]
[1737650626710,2.52739,3277.9,3277.8,2.86933672]
[1737650626910,0.61001,3277.8,3277.7,0.61002]
[1737650627309,1.9174,3277.9,3277.4,2.86933672]
[1737650627509,0.61002,3277.8,3277.7,0.61001]
[1737650627710,1.9174,3277.9,3277.4,2.86933672]
[1737650628014,3.2078,3277.5,3276.8,0.00457834]
[1737650628320,0.61017,3276.9,3276.8,0.00457834]
[1737650628519,3.81797,3276.9,3276.8,0.00457834]
[1737650629612,0.61011,3277.3,3277.1,0.61012]
[1737650629809,7.0683,3277.4,3277.3,0.6101]
[1737650630114,7.0683,3277.4,3277.1,2.86933672]
[1737650630319,0.61011,3277.3,3277.1,0.61014]
[1737650630611,7.0683,3277.4,3276.8,0.00457834]
[1737650630812,7.0683,3277.4,3277.0,0.61014]
[1737650630813,0.61013,3277.2,3277.0,0.61014]
[1737650631011,0.61013,3277.2,3276.8,0.00457834]
[1737650631213,0.61014,3277.2,3276.8,0.00457834]
[1737650631410,7.0683,3277.4,3277.2,0.6101]
[1737650631609,7.0683,3277.4,3276.8,0.00457834]
[1737650632018,0.61015,3277.1,3276.9,0.61017]
[1737650632217,0.61017,3276.9,3276.8,0.00457834]
[1737650632415,3.81797,3276.9,3276.8,0.00457834]
[1737650632719,0.61028,3276.4,3276.2,3.47963672]
[1737650632917,0.61029,3276.3,3276.2,3.47963672]
[1737650633312,3.2078,3276.5,3276.4,0.61027]
[1737650633513,3.2078,3276.5,3276.2,2.86933672]
[1737650633920,0.61029,3276.3,3276.2,2.86933672]
[1737650634619,3.2078,3276.5,3276.0,0.00457834]
[1737650634811,0.61032,3276.1,3276.0,0.00457834]
[1737650635010,0.61032,3276.1,3276.0,0.61491834]
[1737650635623,2.56761,3276.2,3276.1,0.61032]
[1737650635821,1.9573,3276.2,3276.0,0.61490834]
[1737650636123,0.61032,3276.1,3276.0,0.00457834]
[1737650636325,2.56761,3276.2,3276.0,0.61491834]
[1737650636822,1.9573,3276.2,3276.1,0.61032]
[1737650637224,2.5676,3276.2,3276.1,0.61032]
[1737650637623,1.9573,3276.2,3276.0,0.00457834]
[1737650637827,3.81812,3276.1,3276.0,0.00457834]
[1737650638124,3.81812,3276.1,3275.0,4.84593672]
[1737650638125,7.21230712,3276.1,3275.0,4.84593672]
[1737650638424,3.2078,3275.6,3275.1,40.8]
[1737650638620,0.61044,3275.5,3275.3,0.61046]
[1737650639220,0.61044,3275.5,3275.4,0.61045]
[1737650639421,0.00457834,3275.7,3275.5,0.61043]
[1737650639624,0.00457834,3275.7,3275.6,41.41042]
[1737650643127,0.00457834,3275.7,3275.6,46.41042]
[1737650643627,0.00457834,3275.7,3275.6,41.41042]
[1737650645228,3.2078,3276.8,3276.6,0.61022]
[1737650645229,3.818,3276.8,3276.6,0.61022]
[1737650645428,3.2078,3276.8,3276.3,2.86933672]
[1737650645821,3.818,3276.8,3276.6,0.61021]
[1737650646021,3.2078,3276.8,3276.7,3.47954672]
[1737650647130,0.61472834,3277.1,3276.7,2.86933672]
[1737650647336,0.61472834,3277.1,3276.9,0.61016]
[1737650647726,0.00457834,3277.1,3276.7,2.86933672]
[1737650647928,0.61472834,3277.1,3276.7,2.86933672]
[1737650648133,0.00457834,3277.1,3276.7,2.86933672]
[1737650648327,0.61472834,3277.1,3276.9,0.61017]
[1737650648634,0.61015,3277.0,3276.9,0.61017]
[1737650648934,0.61015,3277.0,3276.5,0.61024]
[1737650649123,1.52993834,3277.1,3276.5,0.61024]
[1737650649324,1.52993834,3277.1,3276.3,6.07713672]
[1737650649637,3.2078,3276.8,3276.7,0.61021]
[1737650649827,3.2078,3276.8,3276.3,2.86933672]
[1737650650026,3.2078,3276.4,3275.5,6.07713672]
[1737650650237,3.2078,3276.0,3275.9,0.61036]
[1737650650535,3.2078,3276.0,3275.9,3.47969672]
[1737650651526,0.61025,3276.5,3275.9,3.47969672]
[1737650651727,3.2078,3276.6,3275.9,2.86933672]
[1737650651928,3.2078,3276.6,3276.2,0.6103]
[1737650652123,3.2078,3276.6,3275.9,2.86933672]
[1737650652330,1.52563,3276.5,3275.9,2.86933672]
[1737650652534,0.61034,3276.0,3275.8,0.61036]
[1737650652733,0.61033,3276.1,3275.6,0.61042]
[1737650652939,0.61035,3276.0,3275.9,0.61036]
[1737650653333,1.9787,3276.3,3275.5,2.86933672]
[1737650653830,0.61037,3275.9,3275.7,0.61038]
[1737650654431,0.61037,3275.9,3275.8,0.61038]
[1737650655031,0.61036,3275.9,3275.8,0.61037]
[1737650655729,0.61036,3275.9,3275.5,2.86933672]
[1737650655934,0.61036,3275.9,3275.7,0.61038]
[1737650656135,0.61035,3276.0,3275.9,0.61035]
[1737650656333,0.61037,3275.9,3275.8,0.61037]
[1737650657038,3.2078,3276.2,3275.5,2.86933672]
[1737650657240,0.61037,3275.9,3275.8,0.61037]
[1737650657731,1.9787,3276.3,3275.5,2.86933672]
[1737650657937,3.2078,3276.6,3275.9,2.86933672]
[1737650658134,3.2078,3276.6,3276.5,3.47958672]
[1737650658437,3.2078,3276.6,3276.5,44.27958672]
[1737650659134,0.61019,3276.9,3276.5,43.66933672]
[1737650659340,0.61019,3276.9,3276.8,0.61019]
[1737650659539,0.61019,3276.9,3276.6,0.61023]
[1737650659729,3.21237834,3277.1,3276.5,2.86933672]
[1737650659927,0.00457834,3277.1,3276.5,2.86933672]
[1737650660135,0.61016,3277.0,3276.9,0.61016]
[1737650660330,0.00457834,3277.1,3277.0,0.61015]
[1737650664338,0.00457834,3277.1,3276.9,2.86933672]
[1737650664538,0.00457834,3277.1,3277.0,0.61015]
[1737650665638,0.00457834,3277.1,3277.0,2.9704747]
[1737650672550,0.00457834,3277.1,3277.0,4.8331747]
[1737650674349,3.2078,3277.9,3277.8,0.61001]
[1737650674953,0.60995,3278.2,3278.0,0.60995]
[1737650675450,3.2078,3278.3,3278.2,0.60993]
[1737650675651,3.2078,3278.3,3278.1,2.3603247]
[1737650675848,0.60999,3277.9,3277.8,2.97490304]
[1737650676048,0.60998,3278.0,3277.9,0.60998]
[1737650676249,0.60997,3278.1,3278.0,0.60997]
[1737650676748,0.60998,3278.0,3277.9,0.60998]
[1737650677151,3.2078,3278.3,3277.8,2.36490304]
[1737650677347,3.2078,3278.3,3278.0,0.60996]
[1737650677348,0.60996,3278.1,3278.0,0.60996]
[1737650678046,0.60996,3278.1,3277.8,2.36490304]
[1737650678047,3.2078,3278.3,3277.8,2.36490304]
[1737650678251,0.60999,3277.9,3277.8,2.97489304]
[1737650679455,0.60998,3278.0,3277.9,0.60998]
[1737650679858,3.2078,3278.3,3277.8,2.36490304]
[1737650680153,0.60995,3278.2,3278.1,0.60994]
[1737650680359,3.2078,3278.3,3278.1,2.3603247]
[1737650680656,3.2078,3278.3,3278.2,0.60993]
[1737650680849,3.81771,3278.3,3278.2,0.60993]
[1737650681051,3.2078,3278.3,3277.8,2.36490304]
[1737650681248,7.16675911,3278.3,3277.8,0.00457834]
[1737650681452,0.60999,3278.0,3277.9,0.60997]
[1737650681646,0.60996,3278.1,3278.0,0.60994]
[1737650681852,3.2078,3278.3,3278.2,0.60993]
[1737650682061,4.1037665,3278.3,3278.2,0.60993]
[1737650682350,0.60997,3278.2,3278.1,0.60994]
[1737650682557,0.8960265,3278.2,3278.1,0.60994]
[1737650683656,0.2860565,3278.2,3278.1,0.60994]
[1737650683854,0.8959865,3278.2,3278.1,0.60994]
[1737650684156,0.2860565,3278.2,3278.1,0.60994]
[1737650684353,0.8960465,3278.2,3278.1,0.60994]
[1737650684752,0.61003,3278.0,3277.9,0.61001]
[1737650685346,0.2860565,3278.2,3278.1,0.60999]
[1737650685347,0.8960465,3278.2,3278.1,0.60999]
[1737650685550,0.8960365,3278.2,3278.1,0.60999]
[1737650685957,0.2860565,3278.2,3278.1,2.9703147]
[1737650686557,0.29063484,3278.4,3278.3,0.60997]
[1737650686760,0.00457834,3278.4,3278.3,0.60997]
[1737650687064,0.00457834,3278.4,3278.3,41.40997]
[1737650687451,3.2078,3278.7,3278.3,43.7702947]
[1737650687668,3.2078,3279.3,3279.2,0.6098]
[1737650687864,3.90502467,3279.3,3279.2,0.6098]
[1737650688057,3.49376963,3279.3,3279.2,0.6098]
[1737650688758,3.2078,3279.3,3279.2,0.6098]
[1737650689158,3.2078,3279.7,3279.6,0.60972]
[1737650689361,3.2078,3279.7,3279.6,2.9700447]
[1737650689751,0.60962,3280.2,3279.6,2.3603247]
[1737650689752,3.2078,3280.1,3279.6,2.3603247]
[1737650689955,3.81744,3280.1,3280.0,2.3603247]
[1737650690162,3.2078,3280.1,3280.0,2.9699747]
[1737650690551,3.2078,3280.1,3280.0,2.3603247]
[1737650690965,3.81743,3280.1,3280.0,2.3603247]
[1737650691760,3.2078,3280.1,3280.0,2.9699747]
[1737650692360,3.81743,3280.1,3280.0,2.3603247]
[1737650692566,3.2078,3280.1,3280.0,2.9699747]
[1737650692760,3.81743,3280.1,3280.0,2.3603247]
[1737650696160,0.60969,3279.8,3279.7,0.00457834]
[1737650697666,3.2078,3280.1,3279.7,2.36490304]
[1737650697965,0.60969,3279.9,3279.8,0.60967]
[1737650698259,0.60969,3279.9,3279.7,2.36490304]
[1737650698260,0.60969,3279.8,3279.7,2.36490304]
[1737650698467,2.52549,3279.8,3279.7,2.97461304]
[1737650698862,2.52549,3279.8,3279.7,2.36490304]
[1737650699368,1.9158,3279.8,3279.7,2.97461304]
[1737650699555,2.52549,3279.8,3279.7,2.97461304]
[1737650700471,1.9158,3279.8,3279.7,2.97461304]
[1737650700655,2.52549,3279.8,3279.7,2.97461304]
[1737650701460,2.52549,3279.8,3279.7,0.00457834]
[1737650701863,0.6098,3279.2,3279.1,2.3603247]
[1737650702068,0.6098,3279.2,3279.1,0.60982]
[1737650702069,0.60981,3279.2,3279.1,0.60982]
[1737650702267,0.60981,3279.2,3279.1,2.3603247]
[1737650702467,0.89579413,3279.2,3279.1,2.3603247]
[1737650702664,0.60981,3279.2,3279.1,2.9701447]
[1737650702864,3.2078,3279.3,3279.1,2.3603247]
[1737650703059,3.2078,3279.3,3279.2,0.6098]
[1737650703265,1.93967834,3279.5,3279.4,0.60976]
[1737650703465,0.00457834,3279.5,3279.4,2.9700847]
[1737650704076,3.21237834,3279.5,3279.4,2.9700847]
[1737650704665,3.21237834,3279.5,3279.4,2.3603247]
[1737650704880,3.21237834,3279.5,3279.1,2.3603247]
[1737650705172,0.6098,3279.3,3279.2,0.60979]
[1737650705377,3.8163,3279.4,3279.3,0.60978]
[1737650705867,3.21237834,3279.5,3279.4,0.60976]
[1737650706165,3.82211834,3279.5,3279.4,2.9700847]
[1737650706367,0.00457834,3279.5,3279.4,2.9700847]
[1737650706773,3.21237834,3279.5,3279.4,2.9700847]
[1737650707075,0.00457834,3279.5,3279.4,2.9700847]
[1737650708274,3.21237834,3279.5,3279.4,2.9700847]
[1737650708866,3.82211834,3279.5,3279.4,2.3603247]
[1737650709174,3.82211834,3279.5,3279.4,2.9700847]
[1737650709175,3.21237834,3279.5,3279.4,2.9700847]
[1737650709573,0.00457834,3279.5,3279.4,2.9700847]
[1737650710370,3.2078,3279.9,3279.8,0.60969]
[1737650710676,3.2078,3280.6,3280.5,0.60956]
[1737650710873,8.8074,3281.0,3280.4,2.3603247]
[1737650711076,5.5996,3281.0,3280.9,0.60948]
[1737650711469,3.2078,3281.4,3280.8,2.3603247]
[1737650711673,3.2078,3281.4,3281.3,2.9697347]
[1737650711873,3.90347934,3281.4,3281.3,2.9697347]
[1737650712065,0.69567934,3281.4,3281.3,2.9697347]
[1737650712274,0.28579897,3281.4,3281.3,2.9697347]
[1737650712479,2.63407934,3281.5,3281.3,2.3603247]
[1737650712679,2.63407934,3281.5,3281.0,2.3603247]
[1737650712875,0.60944,3281.1,3281.0,2.3603247]
[1737650713070,3.2078,3281.2,3281.0,2.3603247]
[1737650713071,1.9384,3281.5,3281.0,2.3603247]
[1737650713271,2.22420982,3281.5,3281.4,3.2078]
[1737650713473,1.8133,3281.8,3281.4,3.2078]
[1737650713771,1.8133,3281.8,3281.6,0.60935]
[1737650713972,2.42262,3281.8,3281.5,2.9696847]
[1737650714169,3.2078,3281.6,3280.6,0.00457834]
[1737650714372,6.8133,3281.8,3280.6,0.00457834]
[1737650714373,3.81732,3280.7,3280.6,0.00457834]
[1737650714684,4.10318732,3280.7,3280.6,0.00457834]
[1737650714877,4.51336735,3280.7,3280.6,0.00457834]
[1737650715379,0.60952,3280.7,3280.6,0.00457834]
[1737650715880,0.89535584,3280.7,3280.6,0.00457834]
[1737650716077,1.9436,3281.0,3280.9,0.60948]
[1737650716274,2.3603247,3283.8,3280.9,0.60948]
[1737650716275,3.9703,3281.8,3280.9,7.9284494]
[1737650716475,4.57961,3281.8,3281.7,2.3603247]
[1737650717074,7.1781,3281.8,3281.4,2.3603247]
[1737650717277,0.60937,3281.5,3281.4,2.3603247]
[1737650717477,0.60942,3281.2,3281.1,2.3603247]
[1737650717672,0.60949,3280.8,3280.7,2.3603247]
[1737650718078,0.60951,3280.7,3280.6,2.85913142]
[1737650718277,0.60951,3280.7,3280.6,0.00457834]
[1737650718479,4.48651304,3280.7,3280.6,0.00457834]
[1737650718779,4.48651304,3280.7,3279.8,3.2078]
[1737650718780,0.60966,3279.9,3279.8,6.06235308]
[1737650718981,3.87700304,3280.7,3279.8,2.85455308]
[1737650719187,3.2078,3280.8,3280.5,2.85455308]
[1737650719188,0.60953,3280.6,3280.5,2.85455308]
[1737650720078,3.2078,3280.8,3280.2,0.00457129]
[1737650720278,0.60953,3280.6,3280.5,2.85455308]
[1737650721573,3.89114503,3280.7,3280.2,0.00457129]
[1737650721777,0.60959,3280.3,3280.2,0.00457129]
[1737650722580,3.2078,3280.8,3280.2,0.00457129]
[1737650722778,0.60959,3280.3,3280.2,0.00457129]
[1737650723180,0.00455485,3280.9,3280.2,0.00457129]
[1737650723380,0.00455485,3280.9,3280.8,2.85455308]
[1737650723690,0.61402485,3280.9,3280.8,2.85455308]
[1737650724088,0.00455485,3280.9,3280.8,2.85455308]
[1737650724790,0.00455485,3280.9,3280.8,3.46404308]
[1737650724995,0.00455485,3280.9,3280.8,2.85455308]
[1737650725693,0.00455485,3280.9,3280.8,3.46404308]
[1737650725991,0.60929,3281.9,3280.8,6.31859616]
[1737650726185,3.2078,3282.2,3281.7,3.2078]
[1737650726390,3.81703,3282.2,3282.1,2.85455308]
[1737650728499,9.0206,3282.7,3282.1,2.85455308]
[1737650728700,0.60923,3282.2,3282.1,2.85455308]
[1737650728901,0.60923,3282.2,3282.1,2.85912437]
[1737650729302,3.2078,3282.3,3282.1,2.85912437]
[1737650729597,0.60923,3282.2,3282.1,0.00457129]
[1737650729789,4.55846334,3282.2,3282.1,0.00457129]
[1737650731399,9.0206,3282.7,3282.1,0.00457129]
[1737650731600,1.9809,3282.7,3282.6,2.85455308]
[1737650731901,7.0073,3283.2,3282.6,2.85455308]
[1737650732098,7.0073,3283.2,3282.8,0.6091]
[1737650732299,3.2078,3283.2,3282.6,2.85455308]
[1737650732507,4.49309,3283.5,3283.1,2.85455308]
[1737650732703,1.8413,3283.6,3283.1,2.85455308]
[1737650732899,0.60888,3284.1,3283.5,2.85455308]
[1737650733105,1.8413,3284.0,3283.9,2.85455308]
[1737650733404,3.2078,3284.2,3283.9,2.85455308]
[1737650733604,3.2078,3284.2,3283.5,2.85455308]
[1737650733807,3.81665,3284.2,3283.5,3.46351308]
[1737650733998,3.2078,3284.2,3283.7,0.6089]
[1737650734198,3.2078,3284.2,3283.5,2.85455308]
[1737650734403,3.2078,3284.2,3283.6,0.60893]
[1737650734616,0.60893,3283.7,3283.4,3.2078]
[1737650734794,9.75013064,3284.1,3283.4,3.2078]
[1737650735000,4.61811697,3283.6,3283.1,2.85455308]
[1737650735201,3.2078,3283.8,3283.1,2.85455308]
[1737650735401,3.2078,3283.8,3283.0,1.9942]
[1737650735605,0.60904,3283.1,3282.9,3.2078]
[1737650735904,3.2078,3283.3,3282.5,1.8312]
[1737650736110,4.01059267,3283.9,3282.9,2.85455308]
[1737650736111,4.61965267,3283.0,3282.9,2.85455308]
[1737650736312,5.6953,3283.2,3282.9,2.85455308]
[1737650736506,5.6953,3283.2,3282.7,3.2078]
[1737650736803,7.21839267,3283.1,3282.3,1.8312]
[1737650737208,0.6091,3282.8,3282.3,1.8312]
[1737650737604,3.98641299,3282.7,3282.3,1.8312]
[1737650737809,3.98641299,3282.7,3282.5,2.85455308]
[1737650738004,6.30434,3283.2,3282.5,3.46370308]
[1737650738209,5.6953,3283.2,3282.5,2.85455308]
[1737650738500,3.2078,3283.1,3282.5,3.46370308]
[1737650738707,3.2078,3283.5,3283.0,2.85455308]
[1737650739009,0.60903,3283.3,3282.7,3.81692]
[1737650739204,0.60904,3283.2,3282.7,3.81692]
[1737650739405,0.60899,3283.4,3282.8,0.60909]
[1737650739810,0.60899,3283.4,3282.9,0.60907]
[1737650740008,3.2078,3283.5,3283.0,2.85455308]
[1737650740211,3.2078,3283.5,3283.1,1.9435]
[1737650740401,3.81679,3283.5,3283.1,1.9435]
[1737650740611,3.2078,3283.5,3283.1,1.9435]
[1737650740806,3.2078,3283.5,3283.1,2.55254]
[1737650741007,3.2078,3283.5,3283.1,1.9435]
[1737650741204,11.52464753,3284.5,3283.1,1.9435]
[1737650741205,3.7917,3284.6,3283.2,5.70910616]
[1737650741509,1.8294,3284.6,3284.0,3.2078]
[1737650741714,3.2078,3284.5,3283.9,0.6089]
[1737650741903,3.2078,3284.5,3283.5,3.2078]
[1737650742109,0.60888,3284.0,3283.9,0.00457129]
[1737650742408,3.2078,3284.5,3283.9,0.00457129]
[1737650742409,0.60891,3284.1,3283.9,0.00457129]
[1737650742609,3.2078,3284.5,3283.9,0.00457129]
[1737650742809,0.60889,3284.2,3283.9,0.00457129]
[1737650743008,3.2078,3284.5,3283.9,0.00457129]
[1737650743208,3.2078,3284.5,3284.4,2.85455308]
[1737650743517,1.8951,3284.8,3284.0,8.04435308]
[1737650743920,4.03866339,3284.7,3284.0,8.04435308]
[1737650744114,4.03866339,3284.7,3284.0,5.1898]
[1737650744314,4.03866339,3284.7,3284.0,1.982]
[1737650744315,3.81663,3284.4,3284.0,1.982]
[1737650744510,0.6088,3284.5,3284.0,1.982]
[1737650744709,5.1029,3284.8,3284.0,4.83655308]
[1737650744912,0.60877,3284.7,3284.0,4.83655308]
[1737650745218,4.64893848,3284.6,3284.0,4.83655308]
[1737650745510,0.60877,3284.7,3284.0,4.83655308]
[1737650745919,0.60877,3284.7,3284.0,5.44544308]
[1737650746118,5.71165,3284.8,3284.0,5.44544308]
[1737650746421,0.60882,3284.5,3284.0,1.982]
[1737650746623,3.89686094,3284.7,3284.0,1.982]
[1737650746819,7.78707925,3284.4,3284.0,1.982]
[1737650747021,3.2078,3284.4,3284.0,1.982]
[1737650747417,3.81664,3284.4,3284.0,1.982]
[1737650747615,3.2078,3284.4,3284.0,2.5909]
[1737650747919,3.2078,3284.4,3284.0,1.982]
[1737650748422,3.81664,3284.4,3284.0,1.982]
[1737650748719,0.60889,3284.1,3284.0,1.982]
[1737650748920,3.2078,3284.4,3283.9,0.00457129]
[1737650749118,0.60889,3284.2,3283.9,0.00457129]
[1737650749320,3.2078,3284.4,3283.9,0.00457129]
[1737650749520,0.60891,3284.0,3283.9,0.00457129]
[1737650749913,3.81671,3284.0,3283.9,0.00457129]
[1737650750119,3.81671,3284.0,3283.9,1.29e-06]
[1737650750120,12.81783386,3284.0,3283.9,1.29e-06]
[1737650750317,12.49454966,3284.0,3282.7,5.70055]
[1737650750523,3.2078,3283.3,3282.8,2.85455308]
[1737650751125,0.60914,3282.8,3282.4,2.85455308]
[1737650751418,0.60918,3282.6,3282.2,1.9775]
[1737650751622,3.92939809,3282.7,3282.4,2.85455308]
[1737650751811,0.60921,3282.4,3282.3,0.00457129]
[1737650752717,0.60921,3282.4,3281.4,1.9775]
[1737650752718,10.84742878,3282.4,3281.4,1.9775]
[1737650752922,0.60933,3281.8,3281.3,0.6094]
[1737650753117,5.84742878,3282.4,3281.6,2.85455308]
[1737650753430,3.2078,3282.5,3282.0,2.85455308]
[1737650754132,0.00457129,3282.9,3282.4,2.85455308]
[1737650754423,0.00457129,3282.9,3282.3,3.2078]
[1737650754424,0.00457129,3282.9,3282.8,2.85455308]
[1737650755226,0.00457129,3282.9,3282.4,2.85455308]
[1737650755415,0.00457129,3282.9,3282.5,0.60918]
[1737650755621,0.00457129,3282.9,3282.8,3.46369308]
[1737650756530,1.8052,3283.8,3282.8,2.85455308]
[1737650756828,0.60898,3283.7,3283.2,0.60906]
[1737650757027,0.60898,3283.7,3283.2,3.46361308]
[1737650757218,0.60898,3283.7,3283.2,2.85455308]
[1737650757417,1.8052,3283.8,3283.3,0.60904]
[1737650757625,1.8052,3283.8,3283.2,2.85455308]
[1737650757824,0.60898,3283.7,3283.2,3.46360308]
[1737650758028,0.609,3283.6,3283.2,2.85455308]
[1737650758533,0.60899,3283.6,3283.3,0.60904]
[1737650758830,1.80977129,3283.8,3283.2,2.85455308]
[1737650759332,0.60902,3283.5,3283.2,3.46360308]
[1737650759624,3.94650981,3283.7,3283.2,2.85455308]
[1737650759829,0.60901,3283.5,3283.3,0.60903]
[1737650760029,0.60901,3283.5,3283.2,3.46360308]